bitfinex-derivatives/quotes_ETHF0:USTF0_20251021
["timestamp","ask_amount","ask_price","bid_price","bid_amount"]
[1761069526864,5.2235435,4018.1,4018.0,10.7643]
[1761069527063,4.7757535,4018.1,4018.0,10.7643]
[1761069527364,3.5739,4018.1,4018.0,10.7643]
[1761069527662,4.91479,4018.1,4018.0,10.0057]
[1761069527851,5.14210166,4018.1,4018.0,0.5836]
[1761069528055,5.14210166,4018.1,4017.6,0.23913269]
[1761069528056,0.81393,4017.7,4017.6,7.21673269]
[1761069528253,1.20013,4017.7,4017.6,7.21673269]
[1761069528459,1.20013,4017.7,4017.6,7.80033269]
[1761069529065,0.81393,4017.7,4017.6,8.24817269]
[1761069529358,1.20013,4017.7,4017.6,7.41063269]
[1761069529565,1.42749649,4017.7,4017.6,7.41063269]
[1761069529957,1.93439649,4017.7,4017.6,6.22203269]
[1761069530165,1.42749649,4017.7,4017.6,7.56423269]
[1761069530358,0.67519649,4017.7,4017.6,7.56423269]
[1761069530758,0.67519649,4017.7,4017.6,8.01207269]
[1761069531465,0.22736649,4017.7,4017.6,8.01207269]
[1761069531666,1.78943684,4017.9,4017.8,1.64522]
[1761069531866,2.01678371,4017.9,4017.8,1.64522]
[1761069532477,2.01678371,4017.9,4017.8,1.1974]
[1761069532766,1.56897371,4017.9,4017.8,1.64522]
[1761069532956,1.78942684,4018.0,4017.9,1.64521]
[1761069533160,2.01683103,4018.0,4017.9,1.64521]
[1761069533664,0.4478,4018.0,4017.9,1.64521]
[1761069533857,3.65559,4018.1,4018.0,1.858]
[1761069534068,3.65559,4018.1,4018.0,11.038]
[1761069534455,3.2078,4018.1,4018.0,11.038]
[1761069534655,3.65559,4018.1,4018.0,11.038]
[1761069535066,0.44779,4018.1,4018.0,11.038]
[1761069535366,1.34219617,4018.3,4018.2,1.64518]
[1761069535564,1.77976121,4018.3,4018.2,0.511]
[1761069535764,1.55239,4018.1,4018.0,6.0178]
[1761069535967,2.44689261,4018.1,4018.0,6.0178]
[1761069536167,5.88213791,4018.1,4018.0,6.0178]
[1761069536369,4.98764652,4018.1,4018.0,6.3523]
[1761069536866,4.98764652,4018.1,4018.0,1.0583]
[1761069537369,4.98764652,4018.1,4018.0,0.511]
[1761069537669,0.84152,4017.8,4017.7,9.016]
[1761069537867,1.15872,4017.8,4017.7,9.3505]
[1761069538171,1.55242,4017.8,4017.7,9.3505]
[1761069538372,1.15872,4017.8,4017.7,10.15023]
[1761069538865,1.15872,4017.8,4017.7,9.7024]
[1761069540565,0.7109,4017.8,4017.7,9.7024]
[1761069540771,0.44782,4017.8,4017.7,9.7024]
[1761069541071,1.55243,4017.7,4017.6,2.69e-06]
[1761069541267,0.44802,4016.0,4015.9,1.1974]
[1761069541465,4.36672,4016.0,4015.9,1.1974]
[1761069541660,4.5493387,4016.5,4015.9,0.511]
[1761069541866,0.5134,4017.5,4016.5,1.11992]
[1761069542069,0.7149,4017.5,4017.4,4.09693298]
[1761069542270,3.9227,4017.5,4017.4,9.17816037]
[1761069542475,0.7149,4017.5,4017.4,9.17816037]
[1761069543975,0.7149,4017.5,4017.4,9.84608808]
[1761069544178,0.7149,4017.5,4017.4,0.67108808]
[1761069544380,0.7149,4017.5,4017.4,0.00316037]
[1761069549182,1.4258,4017.5,4017.4,0.00316037]
[1761069555984,0.7149,4017.5,4017.4,0.00316037]
[1761069556782,0.7149,4017.5,4017.4,5.45103037]
[1761069557185,1.4258,4017.5,4017.4,5.45103037]
[1761069557382,1.4258,4017.5,4017.4,6.34236533]
[1761069557584,1.4258,4017.5,4017.4,5.45103037]
[1761069558786,0.7149,4017.5,4017.4,5.45103037]
[1761069558986,1.1562,4017.5,4017.4,5.45103037]
[1761069560293,0.7149,4017.5,4017.4,5.45103037]
[1761069562292,0.7149,4017.5,4017.4,14.62303037]
[1761069562491,0.7149,4017.5,4017.4,15.96146433]
[1761069563496,0.7149,4017.5,4017.4,14.62303037]
[1761069563889,1.1562,4017.5,4017.4,14.62303037]
[1761069564190,1.5521,4017.5,4017.4,9.62303037]
[1761069566095,1.5521,4017.5,4017.4,10.51593854]
[1761069566493,1.1271,4017.5,4017.4,10.51593854]
[1761069566794,1.5521,4017.5,4017.4,10.51593854]
[1761069567393,1.5521,4017.5,4017.4,0.89606854]
[1761069567588,1.1271,4017.5,4017.4,9.62103037]
[1761069567789,1.5521,4017.5,4017.4,9.62103037]
[1761069567990,0.7149,4017.5,4017.4,9.62103037]
[1761069568489,0.7149,4017.5,4017.4,10.51393854]
[1761069571301,0.7149,4017.5,4017.4,9.62103037]
[1761069573796,1.1271,4017.5,4017.4,9.62103037]
[1761069573987,0.7149,4017.5,4017.4,9.62103037]
[1761069577199,6.99995,4017.5,4017.4,9.17316037]
[1761069577401,0.8372,4016.8,4016.7,1.77879261]
[1761069577697,1.7182,4016.5,4016.4,0.89429847]
[1761069578003,1.7182,4016.5,4016.4,10.06129847]
[1761069578604,1.7182,4016.5,4016.4,9.16902456]
[1761069579799,1.2932,4016.5,4016.4,12.37682456]
[1761069580300,1.7182,4016.5,4016.4,12.37682456]
[1761069582495,1.7182,4016.5,4016.4,13.04699227]
[1761069583303,1.7182,4016.5,4016.4,12.37682456]
[1761069586204,1.7182,4016.5,4016.4,12.82480456]
[1761069587510,1.7182,4016.5,4016.4,12.37682456]
[1761069590606,1.7182,4016.5,4016.4,3.20982456]
[1761069592910,1.7182,4016.5,4016.4,3.65780456]
[1761069593506,1.2624,4016.5,4016.4,3.65780456]
[1761069593809,1.6456,4016.5,4016.4,3.65780456]
[1761069596410,1.6456,4016.5,4016.4,3.20982456]
[1761069596610,1.6456,4016.5,4016.4,3.65780456]
[1761069598815,1.6456,4016.5,4016.4,3.20982456]
[1761069599611,2.09357,4016.5,4016.4,3.20982456]
[1761069600816,7.09357,4016.5,4016.4,3.20982456]
[1761069601317,0.979,4016.2,4016.1,1.84954369]
[1761069601518,1.3622,4016.2,4016.1,1.84954369]
[1761069601913,0.979,4016.2,4016.1,1.84954369]
[1761069602115,1.3622,4016.2,4016.1,2.5197114]
[1761069602415,1.3622,4016.2,4016.1,2.52185286]
[1761069602818,0.5976,4016.2,4016.1,5.72965286]
[1761069603016,0.5976,4016.2,4016.1,5.05948515]
[1761069603519,1.3622,4016.2,4016.1,1.40367515]
[1761069603822,1.8102,4016.2,4016.1,9.16314146]
[1761069604524,0.5976,4016.2,4016.1,9.61115146]
[1761069604708,1.3622,4016.2,4016.1,9.16314146]
[1761069605018,0.5976,4016.2,4016.1,9.61115146]
[1761069605622,1.3622,4016.2,4016.1,9.61115146]
[1761069606313,1.3622,4016.2,4016.1,10.50469386]
[1761069606826,1.3622,4016.2,4016.1,1.34369386]
[1761069606827,0.5976,4016.2,4016.1,1.34369386]
[1761069607012,0.0936259,4017.0,4016.4,0.44798]
[1761069607217,3.2078,4017.9,4017.4,0.44787]
[1761069607524,3.2078,4017.9,4017.4,10.94916245]
[1761069607722,0.2444,4018.5,4017.4,10.94916245]
[1761069608022,0.2444,4017.5,4017.4,12.3922809]
[1761069608217,0.9661,4018.0,4017.9,0.44781]
[1761069608421,0.9661,4018.0,4017.9,10.5008497]
[1761069608620,4.1739,4018.0,4017.9,9.16]
[1761069608822,0.2015,4018.0,4017.9,9.16]
[1761069609016,0.7991,4018.0,4017.9,10.0530397]
[1761069609714,0.7991,4018.0,4017.9,9.16]
[1761069610324,0.7991,4018.0,4017.9,10.0530397]
[1761069610518,0.2444,4018.5,4018.3,0.44776]
[1761069610829,1.2234,4018.5,4018.4,9.159]
[1761069611019,1.6066,4018.5,4018.4,0.66897041]
[1761069611215,1.6066,4018.5,4018.4,9.158]
[1761069611728,1.3622,4017.9,4017.8,0.66897041]
[1761069611918,1.3622,4017.9,4017.8,9.82697041]
[1761069612225,1.3622,4017.9,4017.8,9.158]
[1761069612425,1.3622,4017.9,4017.8,9.35721906]
[1761069612621,0.5976,4017.9,4017.8,9.35721906]
[1761069612824,0.5976,4017.9,4017.8,10.24914691]
[1761069613528,0.5976,4017.9,4017.8,9.35721906]
[1761069616324,0.2444,4018.5,4018.4,0.44775]
[1761069616530,0.842,4018.5,4018.4,9.60375]
[1761069617531,1.2234,4018.5,4018.4,9.60375]
[1761069617727,1.6066,4018.5,4018.4,9.156]
[1761069618029,1.45674,4018.5,4018.3,3.2078]
[1761069618330,1.3622,4018.4,4018.3,3.2078]
[1761069618523,0.5976,4018.4,4018.3,12.3628]
[1761069620422,0.839,4018.5,4018.3,12.3628]
[1761069620624,0.00198379,4018.6,4018.5,0.44774]
[1761069620823,0.2444,4019.5,4019.4,0.44764]
[1761069621024,3.2078,4020.6,4019.9,0.44759]
[1761069621334,1.0772,4020.0,4019.9,9.60159]
[1761069621522,0.3169,4021.0,4019.9,9.60159]
[1761069621523,0.3169,4021.0,4020.4,0.44753]
[1761069621722,1.1661,4020.5,4020.4,9.60153]
[1761069621929,1.16804927,4020.5,4020.4,12.81141538]
[1761069622440,2.23194927,4020.5,4020.4,12.36388538]
[1761069623836,2.23194927,4020.5,4020.4,9.15508538]
[1761069623837,7.23194927,4020.5,4020.4,9.15508538]
[1761069625134,1.70664927,4020.5,4020.4,9.15508538]
[1761069625333,1.16804927,4020.5,4020.4,12.36288538]
[1761069625535,0.00194927,4020.5,4020.4,12.36288538]
[1761069625725,1.69024927,4020.5,4020.4,9.15508538]
[1761069625926,2.21554927,4020.5,4020.4,0.00208538]
[1761069626134,7.21554927,4020.5,4020.4,9.15308538]
[1761069627036,2.21554927,4020.5,4020.4,9.15308538]
[1761069627236,1.15164927,4020.5,4020.4,9.15308538]
[1761069628438,1.69024927,4020.5,4020.4,9.15308538]
[1761069628738,1.15164927,4020.5,4020.4,9.15308538]
[1761069629540,0.31884927,4020.5,4020.4,9.15308538]
[1761069629838,1.15164927,4020.5,4020.4,9.15308538]
[1761069630035,2.21554927,4020.5,4020.4,9.15308538]
[1761069630435,2.21554927,4020.5,4020.4,9.60061538]
[1761069630935,2.66306927,4020.5,4020.4,0.00208538]
[1761069632140,1.69024927,4020.5,4020.4,0.00208538]
[1761069632536,2.21554927,4020.5,4020.4,0.00208538]
[1761069632735,2.21554927,4020.5,4020.4,0.44961538]
[1761069632941,1.15164927,4020.5,4020.4,0.44961538]
[1761069633238,1.69024927,4020.5,4020.4,0.44961538]
[1761069635038,2.21554927,4020.5,4020.4,0.00208538]
[1761069635235,2.21554927,4020.5,4020.4,0.44961538]
[1761069636138,2.21554927,4020.5,4020.4,0.00208538]
[1761069636351,2.21554927,4020.5,4020.4,0.44961538]
[1761069637539,2.66306927,4020.5,4020.4,0.00208538]
[1761069637744,0.8328,4019.9,4019.7,0.6655105]
[1761069637934,0.8328,4019.9,4019.8,9.59459]
[1761069638135,0.8328,4019.9,4019.8,9.78922987]
[1761069638738,0.8328,4019.9,4019.8,9.79118827]
[1761069639145,1.3714,4019.9,4019.8,9.79118827]
[1761069639344,0.8328,4019.9,4019.8,9.79118827]
[1761069639544,0.8328,4019.9,4019.8,12.99898827]
[1761069640048,1.8967,4019.9,4019.8,12.3557584]
[1761069640344,2.34429,4019.9,4019.8,9.1479584]
[1761069640646,1.8967,4019.9,4019.8,9.5955584]
[1761069641347,7.34429,4019.9,4019.8,0.0019584]
[1761069642339,2.34429,4019.9,4019.8,0.0019584]
[1761069642642,7.34429,4019.9,4019.8,0.0019584]
[1761069642946,2.34429,4019.9,4019.8,0.0019584]
[1761069643645,7.34429,4019.9,4019.8,0.0019584]
[1761069645237,1.28041,4019.7,4019.6,9.146]
[1761069645444,1.8967,4019.1,4019.0,0.6655105]
[1761069645644,2.3444,4018.9,4018.8,9.5927]
[1761069646147,1.8967,4018.9,4018.8,10.2582105]
[1761069646450,1.3714,4018.9,4018.8,9.5957248]
[1761069646648,0.8328,4018.9,4018.8,9.5957248]
[1761069647748,1.3714,4018.9,4018.8,9.5957248]
[1761069648242,1.3714,4018.9,4018.8,10.48765265]
[1761069648444,1.3714,4018.9,4018.8,9.5957248]
[1761069648648,1.3714,4018.9,4018.8,10.48765265]
[1761069648849,0.8328,4018.9,4018.8,10.48765265]
[1761069649253,1.3714,4018.9,4018.8,10.48765265]
[1761069649442,1.8967,4018.9,4018.8,10.48765265]
[1761069649646,1.8967,4018.9,4018.8,9.5957248]
[1761069650751,1.8967,4018.9,4018.8,9.1480248]
[1761069650951,1.8967,4018.9,4018.8,9.5957348]
[1761069651146,1.3396,4018.9,4018.8,9.5957348]
[1761069651449,2.2714,4018.9,4018.8,9.1480248]
[1761069652354,1.8237,4018.9,4018.8,9.1480248]
[1761069652654,1.8237,4018.9,4018.8,10.26294508]
[1761069652842,1.8237,4018.9,4018.8,9.81523508]
[1761069653451,1.8237,4018.9,4018.8,10.26294508]
[1761069653647,1.3396,4018.9,4018.8,9.5957348]
[1761069654341,1.8237,4018.9,4018.8,9.81526968]
[1761069654554,1.8237,4018.9,4018.8,9.5957348]
[1761069655352,1.3396,4018.9,4018.8,9.5957348]
[1761069658453,0.8328,4018.9,4018.8,9.5957348]
[1761069660154,1.3396,4018.9,4018.8,9.5957348]
[1761069660358,1.8237,4018.9,4018.8,9.5957348]
[1761069660853,1.8237,4018.9,4018.8,9.1480248]
[1761069661058,1.8237,4018.9,4018.8,10.26371202]
[1761069661449,2.2714,4018.9,4018.8,0.0030248]
[1761069661650,1.8237,4018.9,4018.8,0.0030248]
[1761069661954,2.2714,4018.9,4018.8,0.0030248]
[1761069662356,1.8237,4018.9,4018.8,0.0030248]
[1761069662557,1.3396,4018.9,4018.8,0.4507348]
[1761069662861,0.8328,4018.9,4018.8,0.4507348]
[1761069664252,1.8237,4018.9,4018.8,9.5927348]
[1761069665063,1.3396,4018.9,4018.8,9.5927348]
[1761069665258,0.8328,4018.9,4018.8,9.5927348]
[1761069665559,1.8237,4018.9,4018.8,9.5927348]
[1761069665961,1.8237,4018.9,4018.8,0.0030248]
[1761069666262,1.8237,4018.9,4018.8,9.1450248]
[1761069666563,1.8237,4018.9,4018.8,9.5927348]
[1761069666858,1.8237,4018.9,4018.8,9.1450248]
[1761069667248,1.8237,4018.9,4018.8,9.5927348]
[1761069668265,1.8237,4018.9,4018.8,10.26071202]
[1761069669160,0.8328,4018.9,4018.8,9.5927348]
[1761069670461,1.8237,4018.9,4018.8,10.26021176]
[1761069670848,1.8237,4018.9,4018.8,9.81250176]
[1761069671254,1.3396,4018.9,4018.8,9.5927348]
[1761069672063,1.3396,4018.9,4018.8,9.65891004]
[1761069672261,1.8237,4018.9,4018.8,9.65891004]
[1761069672963,1.3396,4018.9,4018.8,9.65891004]
[1761069673360,0.8328,4018.9,4018.8,9.65891004]
[1761069673756,1.3396,4018.9,4018.8,10.55083789]
[1761069674061,1.3396,4018.9,4018.8,9.65891004]
[1761069674264,1.3396,4018.9,4018.8,10.55083789]
[1761069676653,0.8328,4018.9,4018.8,10.9984696]
[1761069677568,1.3396,4018.9,4018.8,10.9984696]
[1761069677862,0.8328,4018.9,4018.8,10.9984696]
[1761069678059,0.3169,4019.5,4019.0,1.11921]
[1761069678368,1.0624,4020.0,4019.9,0.44759]
[1761069678667,1.0624,4020.0,4019.9,9.58559]
[1761069679060,1.0624,4020.0,4019.9,9.65176524]
[1761069679257,1.0624,4020.0,4019.9,10.54000489]
[1761069680460,1.5201,4020.0,4019.9,10.54000489]
[1761069680660,1.5201,4020.0,4019.9,9.65176524]
[1761069681061,1.0624,4020.0,4019.9,9.65176524]
[1761069681264,1.0624,4020.0,4019.9,9.20417524]
[1761069681672,1.0624,4020.0,4019.9,10.54000489]
[1761069683373,1.0624,4020.0,4019.9,12.85956524]
[1761069683667,0.31884927,4020.5,4019.9,17.85956524]
[1761069683863,0.2827,4021.0,4020.9,0.44748]
[1761069684170,0.2827,4021.0,4020.9,13.74557729]
[1761069684370,0.2827,4021.0,4020.9,12.85745524]
[1761069684765,0.2827,4021.5,4021.4,0.44742]
[1761069685072,0.28445633,4021.5,4021.4,9.64859524]
[1761069685963,0.28445633,4021.5,4021.4,12.85639524]
[1761069686269,0.00175633,4021.5,4021.4,13.52151898]
[1761069686469,0.00175633,4021.5,4021.4,12.85639524]
[1761069687262,0.00175633,4021.5,4021.4,12.40897524]
[1761069689871,0.6866,4022.3,4022.2,0.44733]
[1761069690065,0.6866,4022.3,4022.2,9.64450524]
[1761069690368,0.2555,4022.5,4022.4,0.44731]
[1761069690560,0.2555,4022.5,4021.8,1.11842]
[1761069690561,0.6866,4022.4,4021.2,1.33366898]
[1761069690764,0.6866,4022.4,4019.6,3.112897]
[1761069690765,0.6866,4019.4,4019.3,3.2078]
[1761069690970,0.68924187,4019.4,4019.3,0.00309979]
[1761069692567,2.33094602,4020.3,4019.5,0.4288]
[1761069692766,2.33094602,4020.3,4019.7,0.4288]
[1761069692973,2.33094602,4020.3,4020.2,1.33366898]
[1761069693276,3.2078,4020.8,4020.3,0.4288]
[1761069693569,0.25858116,4020.5,4020.4,1.33366898]
[1761069693974,0.00308116,4020.5,4020.4,1.33366898]
[1761069694473,0.68968116,4020.5,4020.4,1.33366898]
[1761069696668,0.68968116,4020.5,4020.2,9.13]
[1761069696868,0.68968116,4020.5,4020.3,1.33366898]
[1761069699178,0.68968116,4020.5,4020.3,1.78120898]
[1761069699379,1.1288,4020.4,4020.3,2.21000898]
[1761069699583,1.5591,4020.4,4020.3,1.76246898]
[1761069700083,1.5591,4020.4,4020.3,10.46366898]
[1761069700476,1.5591,4020.4,4020.3,10.89246898]
[1761069700982,1.5591,4020.4,4020.3,10.46366898]
[1761069701382,1.1288,4020.4,4020.3,11.31546898]
[1761069701578,0.6866,4020.4,4020.3,11.31546898]
[1761069702076,1.1288,4020.4,4020.3,11.31546898]
[1761069705180,0.6866,4021.8,4021.5,0.4288]
[1761069705387,0.6866,4021.8,4021.6,10.91006898]
[1761069705884,0.68932137,4021.8,4021.7,1.33366898]
[1761069706478,0.68932137,4021.8,4021.7,1.52908984]
[1761069706776,0.68932137,4021.8,4021.7,1.33366898]
[1761069707880,0.68932137,4021.8,4021.7,4.54146898]
[1761069708477,0.68932137,4021.8,4021.7,4.74200556]
[1761069708780,0.00272137,4021.8,4021.7,5.17080556]
[1761069709485,0.00272137,4021.8,4021.7,10.17080556]
[1761069710077,3.2078,4022.4,4021.8,0.4288]
[1761069710280,0.6866,4022.3,4022.2,0.44733]
[1761069710479,0.6866,4022.3,4022.2,9.57533]
[1761069710676,0.6866,4022.3,4022.2,10.90899898]
[1761069711092,0.68918926,4022.3,4022.2,10.91148625]
[1761069711282,0.18918926,4022.3,4022.2,10.91148625]
[1761069711688,0.18918926,4022.3,4022.2,11.77918625]
[1761069711889,0.71528926,4022.3,4022.2,12.87058625]
[1761069712086,0.00258926,4022.3,4022.2,12.87058625]
[1761069715491,6.90138926,4022.3,4022.2,0.00248727]
[1761069715881,6.24600926,4022.3,4022.2,0.00248727]
[1761069716082,0.7961,4021.9,4021.8,4.792]
[1761069716889,0.7961,4021.9,4021.8,6.10708]
[1761069717088,0.7961,4021.9,4021.8,4.79403703]
[1761069717895,0.7961,4021.9,4021.8,5.24141703]
[1761069718195,0.7961,4022.2,4021.9,0.8677]
[1761069718395,0.7961,4022.2,4022.1,0.44735]
[1761069718788,0.7961,4022.2,4021.9,1.31506]
[1761069718989,0.7961,4022.2,4021.9,0.8677]
[1761069719183,0.00258926,4022.3,4022.0,1.33366898]
[1761069719390,1.3222,4022.2,4022.1,1.9591]
[1761069719591,1.3222,4022.2,4022.1,2.40645]
[1761069719895,1.8988,4022.2,4022.1,1.53875]
[1761069720094,2.2364,4022.0,4021.9,0.44737]
[1761069720484,1.8988,4022.0,4021.9,3.74013898]
[1761069720799,0.52868926,4022.3,4022.2,2.40643]
[1761069720994,0.00258926,4022.3,4022.2,16.07189898]
[1761069721302,0.7961,4022.2,4022.1,0.44734]
[1761069721492,1.8988,4022.2,4022.1,0.44734]
[1761069721692,1.8988,4022.2,4022.1,1.01414]
[1761069722096,0.7961,4022.1,4022.0,9.57135]
[1761069722292,1.8988,4022.1,4022.0,9.124]
[1761069722899,1.8988,4022.1,4022.0,9.6908]
[1761069723900,1.8988,4022.1,4022.0,11.0831]
[1761069724492,1.8988,4022.1,4022.0,11.53046]
[1761069724990,1.8988,4022.1,4022.0,10.66276]
[1761069725294,0.00258926,4022.3,4022.2,0.44733]
[1761069725494,0.00258926,4022.3,4022.2,2.40643]
[1761069725693,0.00258926,4022.3,4022.2,3.74009898]
[1761069725895,0.52868926,4022.3,4022.2,3.74009898]
[1761069726196,0.00258926,4022.3,4022.2,3.74009898]
[1761069726589,0.00258926,4022.3,4022.2,6.94789898]
[1761069727590,0.00258926,4022.3,4022.2,11.94789898]
[1761069728790,0.00258926,4022.3,4022.2,15.12926817]
[1761069729391,0.022,4022.8,4022.7,1.31498]
[1761069729698,0.022,4022.8,4022.7,16.06984898]
[1761069730403,0.02420135,4022.8,4022.7,16.06984898]
[1761069731694,0.82030135,4022.8,4022.7,16.06984898]
[1761069731894,0.02420135,4022.8,4022.7,16.06984898]
[1761069734500,1.35e-06,4022.8,4022.7,19.25413746]
[1761069735099,1.35e-06,4022.8,4022.7,24.25413746]
[1761069736396,1.35e-06,4022.8,4022.7,19.25413746]
[1761069736602,1.35e-06,4022.8,4022.7,16.06984898]
[1761069737306,1.89880135,4022.8,4022.7,6.08014898]
[1761069737495,0.7961,4022.3,4022.2,3.7746]
[1761069737696,0.3376,4022.5,4021.8,0.00203703]
[1761069737697,1.8988,4021.9,4021.8,0.00203703]
[1761069737897,0.3376,4021.0,4020.7,3.2078]
[1761069738097,0.7961,4020.9,4020.8,6.408]
[1761069738306,5.7961,4020.9,4020.8,9.118]
[1761069738499,5.0,4020.9,4020.2,3.2078]
[1761069738706,1.0991,4020.0,4019.9,20.137]
[1761069738906,0.3072,4020.0,4019.4,0.44764]
[1761069739209,0.3072,4020.0,4019.9,0.00284604]
[1761069739399,4.3069,4020.0,4019.9,0.00284604]
[1761069739993,0.7919,4019.2,4018.5,9.118]
[1761069740205,3.9997,4018.6,4018.5,9.118]
[1761069740804,3.9997,4018.6,4017.9,3.2078]
[1761069740805,0.8379,4018.5,4017.9,3.2078]
[1761069741007,0.8379,4018.0,4017.3,3.2078]
[1761069741207,0.8379,4017.4,4017.1,0.19232781]
[1761069741400,1.28579,4017.3,4017.1,0.19232781]
[1761069741602,0.8379,4017.2,4017.1,0.19232781]
[1761069741804,0.8379,4017.2,4016.7,1.33366898]
[1761069741996,4.0457,4016.8,4016.7,1.33622612]
[1761069742404,8.65573,4016.8,4015.8,0.20115668]
[1761069742602,0.0162,4016.0,4015.8,0.20115668]
[1761069742809,3.2078,4016.1,4016.0,0.779]
[1761069743008,3.2078,4016.1,4015.5,3.9868]
[1761069743208,3.2078,4016.1,4015.5,0.779]
[1761069743409,3.2078,4016.1,4015.5,0.78100012]
[1761069743604,3.224,4016.1,4015.6,0.44807]
[1761069743803,3.224,4016.1,4015.7,0.779]
[1761069743999,0.0162,4016.0,4015.6,0.44807]
[1761069744206,3.2078,4016.1,4015.8,0.44804]
[1761069744517,3.2078,4016.1,4015.9,0.779]
[1761069745008,3.18291076,4016.1,4015.9,0.779]
[1761069745311,3.18291076,4016.1,4016.0,0.779]
[1761069745702,3.19911076,4016.1,4015.9,0.44802]
[1761069746003,3.18291076,4016.1,4015.9,1.22702]
[1761069746311,3.18291076,4016.1,4016.0,0.779]
[1761069746512,3.19911076,4016.1,4015.7,0.44806]
[1761069746821,3.19911076,4016.1,4015.8,1.22704]
[1761069747702,0.0162,4016.0,4015.6,0.779]
[1761069747907,0.0162,4016.0,4015.5,0.00200012]
[1761069747908,0.0162,4015.6,4015.5,0.00200012]
[1761069748105,0.0142,4015.3,4015.0,0.19459409]
[1761069748306,3.222,4015.1,4015.0,0.19459409]
[1761069748705,3.222,4015.1,4014.4,0.4482]
[1761069748907,0.0142,4015.0,4014.4,0.4482]
[1761069749109,0.01740794,4015.0,4014.4,0.00230763]
[1761069749311,3.222,4014.5,4014.4,0.00230763]
[1761069749515,8.222,4014.5,4014.4,0.00230763]
[1761069750211,3.2078,4014.5,4014.4,0.00230763]
[1761069750909,3.222,4014.5,4014.4,0.00230763]
[1761069751303,8.222,4014.5,4014.4,0.00230763]
[1761069751513,0.0142,4014.3,4013.5,1.2273]
[1761069751807,3.2078,4013.9,4013.7,0.44828]
[1761069752003,3.2078,4014.4,4014.1,0.44823]
[1761069752306,3.2078,4014.4,4014.3,1.22722]
[1761069752608,3.2078,4014.4,4014.3,1.2290284]
[1761069752816,3.2078,4014.9,4014.7,1.22717]
[1761069753012,0.0142,4014.8,4014.5,1.22719]
[1761069753312,3.2078,4014.9,4014.6,1.22717]
[1761069753519,3.2078,4014.9,4014.7,0.44817]
[1761069753717,3.2078,4014.9,4014.8,0.779]
[1761069754912,0.0142,4014.8,4014.7,0.44817]
[1761069755117,0.44827,4013.9,4013.3,0.44832]
[1761069755313,0.0124,4013.4,4013.0,0.779]
[1761069755820,3.2078,4013.5,4013.1,0.3293]
[1761069756020,3.65605,4014.0,4013.4,0.44831]
[1761069756220,3.2078,4013.5,4013.4,0.00215972]
[1761069756515,3.2078,4013.5,4013.4,0.78115972]
[1761069756822,3.2202,4013.5,4013.4,0.00215972]
[1761069757017,3.2078,4013.5,4013.4,0.00215972]
[1761069757312,3.2078,4013.5,4013.4,0.78115972]
[1761069757616,3.2202,4013.5,4013.4,0.00215972]
[1761069758814,8.2202,4013.5,4013.4,0.00215972]
[1761069759726,0.44839,4012.8,4012.5,0.779]
[1761069759917,3.2078,4012.9,4012.6,0.779]
[1761069760120,3.2078,4012.9,4012.7,0.779]
[1761069760620,0.44839,4012.8,4012.5,1.22741]
[1761069760919,3.2078,4012.9,4012.7,0.779]
[1761069761123,0.44838,4012.8,4012.7,0.00218199]
[1761069761311,0.45858,4012.8,4012.7,0.00218199]
[1761069762622,3.2078,4012.9,4012.7,0.78118199]
[1761069762823,3.65617,4012.9,4012.7,0.78118199]
[1761069763216,3.65617,4012.9,4012.7,0.00218199]
[1761069763417,0.0102,4012.8,4012.7,0.00218199]
[1761069763926,3.65617,4012.9,4012.7,0.00218199]
[1761069764128,3.65617,4012.9,4012.7,0.78118199]
[1761069765018,3.66637,4012.9,4012.7,0.78118199]
[1761069766318,0.0102,4012.8,4012.7,0.00218199]
[1761069766615,3.66637,4012.9,4012.7,0.00218199]
[1761069766822,3.65617,4012.9,4012.8,0.779]
[1761069767024,3.2078,4013.4,4013.3,1.22733]
[1761069767527,3.2078,4014.0,4013.9,0.779]
[1761069767725,3.2078,4014.0,4013.5,0.779]
[1761069767917,3.218,4014.0,4013.5,0.779]
[1761069768124,0.0102,4013.9,4013.5,0.779]
[1761069768417,0.44827,4013.8,4013.4,0.779]
[1761069768623,3.2078,4013.5,4013.4,0.779]
[1761069768819,3.2078,4013.5,4013.1,0.44834]
[1761069769022,3.65611,4013.5,4013.3,0.779]
[1761069769224,0.44832,4013.4,4013.1,0.779]
[1761069769418,0.44833,4013.3,4013.1,0.779]
[1761069770223,0.44836,4013.0,4012.5,0.44841]
[1761069770420,3.2078,4012.9,4012.7,0.45057199]
[1761069770821,3.2078,4012.9,4012.8,1.109]
[1761069771432,3.65617,4012.9,4012.7,0.78188199]
[1761069771626,3.2078,4012.9,4012.8,0.7797]
[1761069771827,3.2078,4013.4,4013.3,0.7797]
[1761069772634,3.2078,4013.9,4013.8,1.22797]
[1761069772829,3.2078,4014.4,4014.3,1.22791]
[1761069773029,3.21100794,4015.0,4014.9,0.7797]
[1761069773225,0.00320794,4015.0,4014.9,0.7797]
[1761069774727,0.00320794,4015.0,4014.9,5.7797]
[1761069774935,3.2078,4015.7,4014.9,5.7797]
[1761069774936,3.2078,4015.7,4015.3,0.7797]
[1761069775127,3.2078,4015.7,4015.2,0.2927]
[1761069775128,3.2078,4015.7,4015.6,1.22777]
[1761069775529,0.89416965,4016.1,4015.9,0.74074]
[1761069775729,0.89416965,4016.2,4016.0,0.7797]
[1761069775934,0.89704379,4016.2,4016.1,0.7797]
[1761069776327,0.00287414,4016.2,4016.1,0.7797]
[1761069776845,1.78871827,4017.3,4016.6,0.2927]
[1761069777137,1.18396,4018.4,4017.5,0.7797]
[1761069777339,3.2078,4018.0,4017.5,0.7797]
[1761069777633,3.2078,4018.0,4017.6,0.44784]
[1761069777939,3.2078,4018.6,4018.5,0.7797]
[1761069778839,3.21027043,4018.6,4018.5,0.7797]
[1761069780643,0.7362,4018.5,4017.4,0.7797]
[1761069780933,8.21027043,4018.6,4017.4,0.7797]
[1761069780934,3.2078,4018.0,4017.4,0.7797]
[1761069781237,0.00247043,4018.6,4016.8,3.2078]